Cogmind - Beta 16 @@@ ROGUE MODE // 2026.02.06 @ 03:56:01 Player: Megaknight51 Result: Self-destructed Performance ------------- Evolutions (4) 2000 Regions Visited (4) 800 Robots Destroyed (30) 150 Value Destroyed (1175) 1175 Prototype IDs (17) 340 Alien Tech Used (0) 0 Bonus (281) 281 TOTAL SCORE: 4746 Bonus ------- Registered with UFD 300 Friendly Fire -19 Cogmind --------- Core Integrity 676/850 Matter 124/300 Energy 100/100 System Corruption 2% Temperature Cool (0) Movement Core (200) Ox3 Location -6/Factory Parts ------- > --- POWER (2) -------- (None) > --- PROPULSION (4) --- (None) > --- UTILITY (7) ------ Medium Storage Unit > --- WEAPON (2) ------- (None) > --- INVENTORY (10) --- Improved Terrain Scanner Force Field Field Recycling Unit (0) Magnetic Acceleration Cannon Peak State ------------ > --- POWER ------------ Improved Ion Engine > --- PROPULSION ------- Aluminum Leg Improved Aluminum Leg > --- UTILITY ---------- Scrap Suit Medium Storage Unit Improved Signal Interpreter Active Sensor Suite > --- WEAPON ----------- Magnetic Acceleration Cannon Magnetic Acceleration Cannon > --- INVENTORY -------- Subdweller Optics Improved Terrain Scanner Force Field Field Recycling Unit Magnetic Acceleration Cannon Magnetic Acceleration Cannon [Rating: 56] Favorites ----------- Power Light Ion Engine Engine Light Ion Engine Power Core Light Nuclear Core Propulsion Light Treads Treads Light Treads Leg Aluminum Leg Utility Signal Interpreter Device Subdweller Optics Storage Medium Storage Unit Processor Signal Interpreter Weapon Light Cannon Ballistic Gun Light Assault Rifle Ballistic Cannon Light Cannon Launcher Subdweller Shrapnel Launcher Special Weapon Plasma Cutter Slashing Weapon Mining Claw Build | -11 -10 -10 -9 -6 ------- Run | Yrd Mat Sub Scr Fac Slots Evolved 8 | . . . . 8 Power 1 | . . . . 1 Propulsion 2 | . . . . 2 Utility 5 | . . . . 5 Weapon . | . . . . . Parts Attached 29 | 4 7 5 10 3 Power 4 | 1 1 1 1 . Engine 3 | 1 1 . 1 . Core 1 | . . 1 . . Reactor . | . . . . . Propulsion 6 | 2 . 3 1 . Treads 2 | 2 . . . . Leg 4 | . . 3 1 . Wheel . | . . . . . Hover . | . . . . . Flight . | . . . . . Utility 7 | . 2 . 3 2 Device 4 | . 1 . 1 2 Storage 1 | . . . 1 . Processor 2 | . 1 . 1 . Hackware . | . . . . . Protection . | . . . . . Artifact . | . . . . . Weapon 12 | 1 4 1 5 1 Energy Gun . | . . . . . Energy Cannon . | . . . . . Ballistic Gun 2 | 1 . . 1 . Ballistic Cannon 7 | . 3 . 3 1 Launcher 1 | . . 1 . . Special Weapon 1 | . . . 1 . Impact Weapon . | . . . . . Slashing Weapon 1 | . 1 . . . Piercing Weapon . | . . . . . Special Melee Weapon . | . . . . . Unidentified Prototypes . | . . . . . Parts Lost 16 | . 1 6 . 9 Power 2 | . . 1 . 1 Propulsion 5 | . 1 2 . 2 Utility 4 | . . 1 . 3 Weapon 5 | . . 2 . 3 Highest Loss Streak 4 | . 1 4 . 4 To Critical Strikes . | . . . . . Average Backups 3 | 1 4 3 3 5 Power . | . 1 . . . Propulsion . | . . . . . Utility 2 | . 2 1 1 3 Weapon . | . . . 1 1 Tool/Special . | . . . . . Unused Backups 9 | . . 2 3 4 Power 3 | . . 1 2 . Propulsion . | . . . . . Utility 4 | . . 1 . 3 Weapon 2 | . . . 1 1 Tool/Special . | . . . . . Average Slot Usage (%) 76 | . 87 81 77 50 Engine 6 | . 14 2 3 3 Core 1 | . . 7 . . Treads 9 | . 27 2 . . Leg 13 | . . 20 27 7 Device 11 | . 8 11 10 17 Storage 2 | . . . 3 6 Processor 10 | . 8 14 14 1 Ballistic Gun 1 | . 3 . 1 . Ballistic Cannon 17 | . 23 15 15 12 Peak Build Rating 56 | 4 7 10 24 56 Average Rating 15 | 3 6 7 13 51 On Entrance 7 | . 4 6 4 24 Avg Prop Armor Cover (%) . | . . . . . Naked Turns . | . . . . . Heaviest Build 43 | 4 12 17 33 43 Greatest Support 40 | 40 40 20 23 23 Greatest Overweight (x) 11 | . . 1 1 11 Average Overweight (x) . | . . . . 4 Largest Inventory Capacity 10 | 5 5 5 10 10 Average Capacity 6 | 5 5 5 6 10 Most Carried 10 | 3 5 5 10 10 Average Carried 4 | 1 4 4 5 5 Final Capacity 10 | 5 5 5 10 10 Final Carried 10 | 3 5 5 10 4 Scrap Suit Usage (%) 9 | . . . . 55 Class Distribution -------------------- 82% | Mutant 14% | Skirmisher Dominant Class ---------------- Mutant | -10/Materials Mutant | -10/Subcaves Mutant | -9/Scraptown Skirmisher | -6/Factory Resources | -11 -10 -10 -9 -6 ----------- Run | Yrd Mat Sub Scr Fac Matter Collected 1101 | 296 350 200 142 113 Remotely . | . . . . . Salvage Created 760 | 136 202 231 . 191 Parts 39 | 11 15 7 . 6 Haulers Intercepted . | . . . . . Recyclers Shooed 2 | 1 1 . . . Parts Field Recycled . | . . . . . Retrieved Matter . | . . . . . Parts Self-Destructed 6 | . . 6 . . Prevented . | . . . . . Parts Restored . | . . . . . Kills | -11 -10 -10 -9 -6 ------- Run | Yrd Mat Sub Scr Fac Combat Hostiles Destroyed 24 | . 8 9 . 7 Melee 2 | . . 2 . . Guns 3 | . 3 . . . Cannons 13 | . 5 3 . 5 AOE 6 | . . 4 . 2 Classes Destroyed 9 | 2 2 1 . 4 Worker 1 | . . . . 1 Builder 1 | . . . . 1 Tunneler 3 | 3 . . . . Recycler 1 | 1 . . . . Swarmer 3 | . 3 . . . Grunt 9 | . 5 . . 4 Hunter 2 | . . . . 2 Programmer 1 | . . . . 1 Subdweller 9 | . . 9 . . Best Kill Streak 6 | 2 3 5 . 6 Combat Bots Only 5 | . 3 5 . 4 Max Kills in Single Turn 4 | 1 1 2 . 4 Gunslinging . | . . . . . Exploded 2 | . . 1 . 2 Melee 1 | . . 1 . . Uniques/NPCs Destroyed . | . . . . . Combat | -11 -10 -10 -9 -6 -------- Run | Yrd Mat Sub Scr Fac Hostile Shots Fired 156 | . 48 24 . 84 Missed 43 | . 11 5 . 27 Hits 113 | . 37 19 . 57 Projectile 113 | . 37 19 . 57 AOE 2 | . . 2 . . Critical Strikes 4 | . . 1 . 3 Damage Taken 2333 | . 382 591 . 1360 Core 373 | . 34 165 . 174 Absorbed by Shields . | . . . . . Core Remaining (%) 60 | 100 . . 20 . Volleys Fired 135 | 59 40 14 . 22 Largest 2 | 1 2 2 . 2 Hottest 88 | 20 60 70 . 88 Shots Fired 207 | 59 80 24 . 44 Gun 89 | 59 30 . . . Cannon 112 | . 50 18 . 44 Launcher 6 | . . 6 . . Special . | . . . . . Kinetic 207 | 59 80 24 . 44 Thermal . | . . . . . Explosive . | . . . . . Electromagnetic . | . . . . . Robot Hit Streak 12 | 7 12 5 . 7 Robot Miss Streak 6 | 2 6 2 . 2 Penetration Max . | . . . . . Secondary Targets . | . . . . . Shots Hit Robots 122 | 40 38 19 . 25 Core Hits 61 | 13 16 13 . 19 Critical Kills . | . . . . . Critical Parts Destroyed . | . . . . . Critical Strikes 2 | . . . . 2 Blast 2 | . . . . 2 Melee Attacks 8 | . 1 7 . . Impact . | . . . . . Slashing 8 | . 1 7 . . Piercing . | . . . . . Sneak Attacks . | . . . . . Combat Hostiles . | . . . . . Follow-up Attacks . | . . . . . Damage Inflicted 3262 | 341 550 726 . 1645 Guns 453 | 341 112 . . . Cannons 1365 | . 429 201 . 735 Explosions 1294 | . . 384 . 910 Melee 141 | . . 141 . . Ramming 9 | . 9 . . . Kinetic 2202 | 341 541 585 . 735 Thermal 149 | . . . . 149 Explosive 664 | . . . . 664 Electromagnetic 97 | . . . . 97 Impact . | . . . . . Slashing 141 | . . 141 . . Piercing . | . . . . . Highest Corruption 4 | . 4 4 4 2 Average Corruption 3 | . 3 4 4 1 Corruption Purged . | . . . . . Corruption Blocked . | . . . . . Effects 44 | . 27 16 . 1 Message Errors 7 | . 5 2 . . Matter Fused 10 | . 6 4 . . Heat Flow Errors 5 | . 3 2 . . Energy Discharges 3 | . 1 2 . . Parts Rejected 1 | . 1 . . . Parts Fused 1 | . 1 . . . Data Loss (minor) 8 | . 5 3 . . Data Loss (major) 2 | . 1 1 . . Misfires 2 | . 1 . . 1 Alerts 3 | . 2 1 . . Weapon Failures 2 | . 1 1 . . Overload Shots . | . . . . . Overflow Damage 123 | . . 1 . 122 Projectiles 27 | . . . . 27 Explosions 96 | . . 1 . 95 Melee . | . . . . . Knockbacks 10 | . 8 2 . . Impact . | . . . . . Kinetic 9 | . 7 2 . . Secondary 1 | . 1 . . . Self-Inflicted Damage 94 | . . 94 . . Shots 3 | . . 3 . . Rammed 8 | . 8 . . . Targets Rammed 8 | . 8 . . . Kicked . | . . . . . Crushed . | . . . . . Highest Temperature 255 | . 221 255 . 33 Average Temperature 41 | . 34 128 . 23 Received Heat Transfer 569 | . 141 395 . 33 Siege Activations . | . . . . . Martial Activations . | . . . . . Shielding Activations . | . . . . . Robots Disrupted . | . . . . . Combat Hostiles . | . . . . . Robots Corrupted . | . . . . . Combat Hostiles . | . . . . . Parts Fried . | . . . . . Impact Corruptions . | . . . . . Robots Melted . | . . . . . Combat Hostiles . | . . . . . Parts Melted 3 | . . 3 . . Heat Transferred 100 | . . . . 100 Parts Sabotaged . | . . . . . Parts Stolen . | . . . . . Parts Stripped . | . . . . . Power Chain Reactions . | . . . . . Alert | -11 -10 -10 -9 -6 ------- Run | Yrd Mat Sub Scr Fac Maximum Alert Level 1 | . . . . 1 Low Security (%) 85 | 100 100 . . 51 Level 1 14 | . . . . 48 Level 2 . | . . . . . Level 3 . | . . . . . Level 4 . | . . . . . Level 5 . | . . . . . High Security . | . . . . . Max Security . | . . . . . Peak Influence 361 | 10 109 . . 361 Initial . | . . . . . Average 50 | . 10 . . 144 Influence Increases 769 | 20 282 . . 467 Destroy 0b10 Robot/C 300 | . 160 . . 140 Destroy 0b10 Robot/NC 30 | 20 . . . 10 Destroy Leader 80 | . 40 . . 40 Successful Hack 40 | . 34 . . 6 Disable Machine 240 | . 15 . . 225 Destroy Structure 34 | . 3 . . 31 Lose Combat Pursuer 45 | . 30 . . 15 Influence Decreases 556 | 20 242 40 . 254 Entered New Map 20 | . . 20 . . Time Decay 356 | 20 152 20 . 164 Lost Part 100 | . 10 . . 90 Purge Threat 80 | . 80 . . . Squads Dispatched 3 | . 2 . . 1 Investigation 1 | . 1 . . . Extermination 1 | . . . . 1 Reinforcement 1 | . 1 . . . Assault . | . . . . . Garrison . | . . . . . Intercept . | . . . . . Searches Triggered . | . . . . . Construction Impeded . | . . . . . Haulers Reinforced . | . . . . . Active Scanning Responses . | . . . . . Cargo Convoy Interrupts . | . . . . . Stealth | -11 -10 -10 -9 -6 --------- Run | Yrd Mat Sub Scr Fac Distress Signals . | . . . . . Communications Jammed . | . . . . . Distress Signals . | . . . . . Times Spotted 29 | . 15 9 . 5 Peak Tracking Total 3 | . 3 3 . 3 Tactical Retreats 3 | . 2 . . 1 Traps | -11 -10 -10 -9 -6 ------- Run | Yrd Mat Sub Scr Fac Traps Triggered 4 | . 4 . . . Indirectly . | . . . . . Trap Hack Attempts . | . . . . . Triggered . | . . . . . Disarmed . | . . . . . Reprogrammed . | . . . . . Reused . | . . . . . Traps Extracted . | . . . . . Installed . | . . . . . Triggered . | . . . . . Machines | -11 -10 -10 -9 -6 ---------- Run | Yrd Mat Sub Scr Fac Machines Disabled 16 | . 1 . . 15 Max in Single Turn 9 | . 1 . . 9 Machines Repaired . | . . . . . Machines Dismantled . | . . . . . Machines Sabotaged . | . . . . . Overloaded Fab Kills . | . . . . . Hacking | -11 -10 -10 -9 -6 --------- Run | Yrd Mat Sub Scr Fac Machines Accessed 10 | . 7 . 2 1 Terminals 8 | . 7 . . 1 Fabricators . | . . . . . Repair Stations . | . . . . . Recycling Units . | . . . . . Scanalyzers . | . . . . . Garrison Access . | . . . . . Total Hacks 35 | . 24 . 9 2 Successful 18 | . 8 . 9 1 Failed 16 | . 15 . . 1 Catastrophic 3 | . 3 . . . Database Lockouts 1 | . 1 . . . Manual 12 | . 10 . . 2 Terminals 26 | . 24 . . 2 Fabricators . | . . . . . Repair Stations . | . . . . . Recycling Units . | . . . . . Scanalyzers . | . . . . . Garrison Access . | . . . . . Terminal Hacks 17 | . 8 . 9 . Record 8 | . . . 8 . Robot Analysis 2 | . 2 . . . Prototype ID Bank 3 | . 3 . . . Terminal Index 1 | . 1 . . . Unreport Threat 1 | . 1 . . . Registered Components 1 | . 1 . . . Proto ID Catalog 1 | . . . 1 . Fabricator Hacks . | . . . . . Repair Station Hacks . | . . . . . Recycling Unit Hacks . | . . . . . Scanalyzer . | . . . . . Garrison Access Hacks . | . . . . . Unauthorized Hacks 1 | . . . . 1 Terminals 1 | . . . . 1 Assimilate 1 | . . . . 1 Fabricators . | . . . . . Repair Stations . | . . . . . Recycling Units . | . . . . . Scanalyzers . | . . . . . Garrison Access . | . . . . . Data Cores Recovered . | . . . . . Used . | . . . . . Hacking Detections 7 | . 6 . . 1 Full Trace Events 1 | . 1 . . . Feedback Events . | . . . . . Feedback Blocked . | . . . . . Robot Schematics Acquired . | . . . . . Robots Built . | . . . . . Authchips . | . . . . . Time . | . . . . . Total Robot Build Rating . | . . . . . Part Schematics Acquired . | . . . . . Parts Built . | . . . . . Authchips . | . . . . . Time . | . . . . . Total Part Build Rating . | . . . . . Part Studies Acquired . | . . . . . Parts Repaired . | . . . . . Time . | . . . . . Parts Recycled . | . . . . . Recycled Matter . | . . . . . Retrieved Matter . | . . . . . Retrieved Components . | . . . . . Parts Scanalyzed . | . . . . . Part Schematics Acquired . | . . . . . Parts Damaged . | . . . . . Bothacking | -11 -10 -10 -9 -6 ------------ Run | Yrd Mat Sub Scr Fac Used RIF Installer . | . . . . . Robots Hacked . | . . . . . Non-combat . | . . . . . Combat . | . . . . . Robot Hacks Applied . | . . . . . Relay Couplers Released . | . . . . . Fabnet Peak Effective % . | . . . . . Robots Rewired . | . . . . . Allies Hacked . | . . . . . Hacks Repelled . | . . . . . Allies | -11 -10 -10 -9 -6 -------- Run | Yrd Mat Sub Scr Fac Total Allies . | . . . . . Largest Group . | . . . . . Highest-Rated Group . | . . . . . Highest-Rated Ally . | . . . . . Total Orders . | . . . . . Ally Attacks . | . . . . . Total Damage . | . . . . . Kills . | . . . . . Allies Corrupted . | . . . . . Allies Melted . | . . . . . Intel | -11 -10 -10 -9 -6 ------- Run | Yrd Mat Sub Scr Fac Active Infowar (turns) 2586 | . 1030 768 275 513 Optics 547 | . . . 275 272 Sensors 1798 | . 1030 768 . . A.S.S. 513 | . . . . 513 Robot Analysis Total 2 | . 2 . . . Derelict Logs Recovered 2 | . . 2 . . Drone Launches . | . . . . . Drone Recoveries . | . . . . . Exploration | -11 -10 -10 -9 -6 ------------- Run | Yrd Mat Sub Scr Fac Turns Passed 5586 | 388 1695 968 1616 919 Spaces Moved 3129 | 176 854 684 1205 210 Core 74 | 7 . . . 67 Treads 1100 | 169 854 77 . . Legs 1955 | . . 607 1205 143 Wheels . | . . . . . Hover . | . . . . . Flight . | . . . . . Fastest Speed 50 | 50 160 120 120 190 Average Speed 149 | 155 160 124 127 311 Slowest Speed 600 | 160 160 190 190 600 Overloaded Moves . | . . . . . Propulsion Burnouts . | . . . . . Robots Hopped . | . . . . . Potential Cave-ins . | . . . . . Cave-ins Triggered . | . . . . . Exploration Rate (%) 44 | 10 98 42 67 4 Regions Visited 4 Branch Regions 2 Pre-discovered Areas 1 | . . 1 . . Known Exits Taken 3 | . 1 1 1 . Unknown Exits Taken 1 | 1 . . . . Scrap Searched 4 | . . . 4 . Spaces Dug . | . . . . . Terrain Destroyed 104 | . . 74 . 30 Melee . | . . . . . Projectile 4 | . . . . 4 AOE 100 | . . 74 . 26 Terrain Rammed . | . . . . . Walls Destroyed . | . . . . . Machines Disabled . | . . . . . Actions | -11 -10 -10 -9 -6 --------- Run | Yrd Mat Sub Scr Fac Total 3821 | 241 1098 760 1290 432 Wait 470 | . 182 40 54 194 Move 3125 | 175 853 683 1204 210 Hop . | . . . . . Pick Up 20 | 3 2 5 9 1 Fast Attach 16 | 4 4 1 7 . Attach 8 | . . 3 1 4 Detach 3 | . . 1 1 1 Swap 12 | . 6 3 3 . Drop 16 | . 2 3 11 . Fire 135 | 59 40 14 . 22 Melee 8 | . 1 7 . . Ram . | . . . . . Kick . | . . . . . Crush 8 | . 8 . . . Escape Stasis . | . . . . . Rewire . | . . . . . Trap . | . . . . . Miscellaneous . | . . . . . Route ------- -11/Scrapyard -10/Materials (discovered 6 exits: *Mat x3 / *Min x2 / *Sub) -10/Subcaves (discovered 2 exits: *Scr x2) -9/Scraptown -6/Factory History --------- Turn | Location | Event 18 | -11/Scrapyard | Discovered new exit (range 15) 389 | -11/Scrapyard | Entered Materials 390 | -10/Materials | Build established: Mutant 390 | -10/Materials | Met a group of wandering Federalists 505 | -10/Materials | Lost 3 allies 507 | -10/Materials | Discovered new exit (range 12) 878 | -10/Materials | Discovered new exit (range 9) 895 | -10/Materials | Central database locked down 1110 | -10/Materials | Identified exit to Mines 1468 | -10/Materials | Discovered exit to Mines (range 11) 1586 | -10/Materials | Discovered new exit (range 8) 1597 | -10/Materials | Identified exit to Materials 1800 | -10/Materials | Discovered exit to Materials (range 16) 2080 | -10/Materials | Discovered new exit (range 3) 2082 | -10/Materials | Identified exit to Subcaves 2084 | -10/Materials | Entered Subcaves 2085 | -10/Subcaves | Continued accompanying wandering Federalists (2) 2085 | -10/Subcaves | Approached by a straggling Scientist 2092 | -10/Subcaves | Learned location of 1 exit from Materials 2184 | -10/Subcaves | A Subdweller sparked back to life 2184 | -10/Subcaves | A Subdweller sparked back to life 2184 | -10/Subcaves | A Subdweller sparked back to life 2273 | -10/Subcaves | Lost 3 allies 2345 | -10/Subcaves | Shifting Twisted Machinery released Sub. Shrapnel Launcher 2348 | -10/Subcaves | Shifting Twisted Machinery released Sub. Power Source 2371 | -10/Subcaves | Learned 4 Materials zone layouts 2527 | -10/Subcaves | Learned location of Zion (-6) 2527 | -10/Subcaves | Met a Zionite searching for "candidates" 2686 | -10/Subcaves | Identified exit to Scraptown 2713 | -10/Subcaves | Ambushed by Subdweller buried in earth 2725 | -10/Subcaves | Ambushed by Subdweller buried in earth 2842 | -10/Subcaves | Scientist uncovered a shortcut to Scraptown 2869 | -10/Subcaves | Core integrity fell below 50% 2902 | -10/Subcaves | Lost 4 parts (2n1u1w) 2980 | -10/Subcaves | A swath of the cavern ceiling suddenly collapsed 3052 | -10/Subcaves | Entered Scraptown 3055 | -9/Scraptown | System corruption cleaned by C-Scrubber 3321 | -9/Scraptown | Visited UFD Registry 3321 | -9/Scraptown | Registered with UFD as "Thunderspreader" 3331 | -9/Scraptown | Visited The Evicted 3400 | -9/Scraptown | Visited Fellowship of the Rings 3430 | -9/Scraptown | Visited Comm Corps 3505 | -9/Scraptown | Visited Cave Peace 3555 | -9/Scraptown | Visited Red Mages 3634 | -9/Scraptown | Visited Assassins FH 3687 | -9/Scraptown | Visited SPCMW 3761 | -9/Scraptown | Visited Science Guys 3815 | -9/Scraptown | Visited Scrapoid Research Area 3973 | -9/Scraptown | Visited Observation Area 4043 | -9/Scraptown | Visited Derelict Rescue Squad 4064 | -9/Scraptown | Visited Infowarlord's Domain 4240 | -9/Scraptown | Found Active Sensor Suite 4272 | -9/Scraptown | Visited Science Testing Area 4290 | -9/Scraptown | Visited DA-N13 Charitable Foundation 4295 | -9/Scraptown | Found DCF Scrap (30 items) 4373 | -9/Scraptown | Visited Scrap Suit Storage 4389 | -9/Scraptown | Found Scrap Suit 4419 | -9/Scraptown | Visited Supply Room 4664 | -9/Scraptown | Discovered new exit (range 3) 4666 | -9/Scraptown | Identified exit to Factory 4668 | -9/Scraptown | Entered Factory 4668 | -6/Factory | Evolved 8 slots: Power x1, Propulsion x2, Utility x5 4983 | -6/Factory | Build established: Skirmisher 5216 | -6/Factory | Lost 3 parts (1p2n) 5587 | -6/Factory | Self-destructed Last Messages --------------- 05514_ Acquired 10 matter. 05523_ Magnetic Acceleration Cannon destroyed. 05527_ Terminal disabled. 05529_ Destroyed Shock Rifle. 05532_ P-60 Hacker destroyed. 05533_ U-05 Engineer lays Concrete. 05535_ Acquired 2 matter. 05535_ U-05 Engineer lays Concrete. 05536_ Knocked back. 05536_ U-05 Engineer lays Concrete. 05540_ Magnetic Acceleration Cannon destroyed. 05540_ Knocked back. 05566_ System corrupted: FCS attempts to trigger Magnetic Acceleration Cannon. 05566_ System corrupted: Magnetic Acceleration Cannon misfires. 05577_ Magnetic Acceleration Cannon destroyed. 05577_ Scrap Suit destroyed. 05577_ Active Sensor Suite destroyed. 05577_ Critical hit (Blast). 05587_ Sub. Optics destroyed. Map ----- +----------------------------------------------------+ | ?????????????????????????????????????????????????? | | ?????????????????????????????????????????????????? | | ?????????????????????????????????????????????????? | | ?????????????????????????????????????????????????? | | ?????????????????????????????????????????????????? | | ???????????????????????????????? ??????????????? | | ??????????????????????????????? ?????????????? | | ???????????????????????????????# #?????????????? | | ???????????????????????????????# #?????????????? | | ???????????????????????????????# #?????????????? | | ???????????????????????????????# #?????????????? | | ???????????????????????????????# H #?????????##### | | ???????????????????"???????????# #????????? | | ???????????????????"T###+####### ########## | | ???????????????????" % | | ???????????????????" % | | ???????????????????? """ | | ?????????????????????# """ | | ?????????????????????# """ % | | ?????????????????????# | | ??????????????????#### % % % | | ??????????????????+ % %% % | | ??????????????????# % | | ??????????????????# "" | | ??????????????????# "F % | | ??????????????????# "@ | | ??????????????????# "" | | ??????????????????# ! % | | ??????????????????# % | | ??????????????????###+########### #### | | ???????????????????????????######+#### | | ???????????????????????????# # " "" " | | ???????????????????????????# # " | | ???????????????????????????# # " % | | ???????????????????????????# # " " | | ???????????????????????????# # " " | | ???????????????????????????# + # " | | ???????????????????????????# # # " | | ???????????????????????????# # # " | | ????????????????????################## # " | | ????????????????????# # # " | | ????????????????????#"" """" # # " | | ????????????????????#"Y """" # # | | ????????????????????#"" """" + # ! | | ????????????????????# """" # ####### | | ????????????????????# """" # ########?????? | | ????????????????????# """" # #????????????? | | ????????????????????# [ #######????????????? | | ????????????????????###########??????????????????? | | ?????????????????????????????????????????????????? | +----------------------------------------------------+ Best States ------------- Heat Dissipation 37 Energy Generation 14 Energy Capacity 265 Matter Stores 300 Matter Capacity 300 Sight Range 21 Robot Scan Range 20 Terrain Scan Density 10 Evasion (%) 55 Recoil Reduction 2 Item Schematics ----------------- None Robot Schematics ------------------ None Fabricated ------------ Nothing Repaired ---------- Nothing Studied --------- None Alien Tech Used ----------------- None Achievements -------------- Do Not Disturb Nice Directions, Buddy Challenges ------------ None Game ------ Seed PlasmaLatentStrikerail Manual? 0 Play Time 00:32:23 Cumulative 55.9 hours Start 2026.02.06 @ 03:26:38 End 2026.02.06 @ 03:56:01 Sessions 1 Manual Loads 0 Difficulty Rogue Special Mode None Game No. 108 Rogue 108 Adventurer 0 Explorer 0 Win Type - Total 0 Types 0/0/0/0/0/0/0/0/0/0 Lore% 35 Gallery% 31 Achievement% 27 Wizard Run 0 Options --------- Layout 0 ASCII 0 Keyboard 1 Movement Arrows Keybinds 0 Fullscreen 1 Font 18/Smallcaps Map View 76x50 Zoom Use 81% Tactical HUD 1 Map Filters NONE Filters NONE Steam 1 RUN: 419a33a0-7b85-44ae-a3fe-fb3a80b5cf05